bitfinex/quotes_SOLUSD_20220227
["timestamp","ask_amount","ask_price","bid_price","bid_amount"]
[1645958740972,46.9057,90.377,90.262,2.45708986]
[1645958741372,36.03973063,90.376,90.262,2.45708986]
[1645958741774,16.6147,90.37,90.28,16.6135]
[1645958741973,16.6147,90.37,90.281,2.2589559]
[1645958742374,16.6147,90.37,90.264,2.4730601]
[1645958744580,16.6147,90.37,90.27,16.6149]
[1645958744798,1.87793694,90.369,90.271,2.54485474]
[1645958745603,16.6163,90.36,90.271,2.54485474]
[1645958745801,32.29236414,90.359,90.271,2.54485474]
[1645958746103,1.43911184,90.357,90.251,2.78105851]
[1645958746301,2.74678921,90.358,90.213,2.80961851]
[1645958746502,22.8457,90.357,90.213,2.80961851]
[1645958746704,4.43,90.356,90.213,2.80961851]
[1645958746903,4.43,90.356,90.214,2.74678921]
[1645958747104,2.74678921,90.355,90.216,111.6]
[1645958747305,2.74678921,90.355,90.22,16.6235]
[1645958747306,16.6204,90.34,90.22,16.6235]
[1645958747505,111.6,90.337,90.221,2.62441336]
[1645958747702,4.43,90.336,90.221,2.62441336]
[1645958747903,7.17678921,90.336,90.221,2.62441336]
[1645958748103,1.46377424,90.334,90.221,2.62441336]
[1645958748303,13.33,90.32,90.216,2.97636869]
[1645958748506,70.01100855,90.319,90.216,2.97636869]
[1645958749004,2.74678921,90.318,90.216,2.97636869]
[1645958749204,16.6264,90.31,90.216,114.57636869]
[1645958749405,16.6264,90.31,90.217,2.37531442]
[1645958749705,24.1731,90.309,90.217,2.37531442]
[1645958750307,22.8641,90.308,90.217,2.37531442]
[1645958750507,22.8641,90.308,90.22,16.6242]
[1645958750910,22.8641,90.308,90.221,2.9167597]
[1645958751112,16.6274,90.3,90.221,2.9167597]
[1645958751315,43.00522832,90.299,90.216,3.07899956]
[1645958751512,44.88316526,90.299,90.187,2.28665916]
[1645958751910,2.74678921,90.298,90.187,2.28665916]
[1645958752108,43.00522832,90.299,90.187,2.28665916]
[1645958752509,16.6297,90.29,90.191,111.6]
[1645958752709,16.6297,90.29,90.191,3.05667748]
[1645958752913,43.00522832,90.299,90.191,3.05667748]
[1645958753116,43.00522832,90.299,90.191,5.80346669]
[1645958753313,43.00522832,90.299,90.191,25.20744593]
[1645958753512,43.00522832,90.299,90.193,114.49893269]
[1645958753711,43.00522832,90.299,90.194,3.0191157]
[1645958753919,43.00522832,90.299,90.195,111.6]
[1645958754112,43.00522832,90.299,90.196,2.73750016]
[1645958754320,43.00522832,90.299,90.201,113.95684724]
[1645958754513,43.00522832,90.299,90.202,2.72929531]
[1645958754812,43.00522832,90.299,90.203,111.6]
[1645958755013,43.00522832,90.299,90.203,136.45771109]
[1645958755214,43.00522832,90.299,90.206,3.10182998]
[1645958755415,43.00522832,90.299,90.222,2.2690811]
[1645958755716,46.713,90.343,90.231,111.6]
[1645958755914,46.713,90.343,90.23,13.33]
[1645958755915,46.713,90.343,90.233,111.6]
[1645958756115,46.713,90.343,90.234,2.33695021]
[1645958756315,46.713,90.343,90.235,111.6]
[1645958756518,24.789,90.374,90.241,111.6]
[1645958756717,32.40947144,90.373,90.251,111.6]
[1645958756916,32.40947144,90.373,90.252,2.27081639]
[1645958757316,32.40947144,90.373,90.253,2.74678921]
[1645958757515,16.6153,90.37,90.26,16.6165]
[1645958757718,16.6153,90.37,90.261,2.95328038]
[1645958759520,16.6153,90.37,90.27,16.6154]
[1645958759718,2.74678921,90.369,90.271,2.73685965]
[1645958761020,42.47206021,90.359,90.251,2.95515514]
[1645958761219,1.55617676,90.358,90.251,2.85447565]
[1645958761419,3.4341137,90.358,90.234,2.36283692]
[1645958761623,1.87495133,90.355,90.234,2.36283692]
[1645958761822,4.429,90.354,90.234,2.36283692]
[1645958762023,111.6,90.349,90.234,2.36283692]
[1645958762221,16.623,90.33,90.234,2.36283692]
[1645958762421,45.03313655,90.329,90.234,2.36283692]
[1645958763122,115.34488233,90.328,90.211,2.98737891]
[1645958763323,115.34488233,90.328,90.14,58.46898456]
[1645958763324,1.74914292,90.327,90.202,2.745979]
[1645958763546,4.431,90.326,90.202,2.745979]
[1645958763723,4.49593213,90.327,90.202,2.745979]
[1645958763923,30.50028921,90.326,90.202,114.345979]
[1645958764127,2.74678921,90.325,90.211,111.6]
[1645958764325,2.74678921,90.325,90.212,2.41532078]
[1645958764625,2.74678921,90.325,90.213,111.6]
[1645958764825,2.74678921,90.325,90.214,2.40992436]
[1645958765024,2.74678921,90.325,90.214,5.15671357]
[1645958765425,2.74678921,90.325,90.215,2.74678921]
[1645958765626,2.74678921,90.325,90.231,2.44354966]
[1645958766926,2.74678921,90.325,90.24,16.6207]
[1645958767126,23.3225,90.326,90.242,2.76183078]
[1645958767326,45.03313655,90.329,90.242,2.76183078]
[1645958767527,45.03313655,90.329,90.243,3.93]
[1645958767928,45.03313655,90.329,90.243,6.67678921]
[1645958768132,45.03313655,90.329,90.244,114.34678921]
[1645958768329,45.03313655,90.329,90.245,2.68575959]
[1645958768529,45.03313655,90.329,90.261,2.65883029]
[1645958770730,45.03313655,90.329,90.22,55.4009]
[1645958771059,45.03313655,90.329,90.23,3.09511662]
[1645958772231,23.8338,90.328,90.23,3.09511662]
[1645958772633,16.6243,90.32,90.231,2.51035544]
[1645958773432,16.6243,90.32,90.231,114.11035544]
[1645958773633,23.8359,90.327,90.232,2.82138412]
[1645958773833,23.8359,90.327,90.241,3.11948008]
[1645958774034,23.8359,90.327,90.241,114.71948008]
[1645958774236,45.03313655,90.329,90.241,111.6]
[1645958774433,45.03313655,90.329,90.244,2.28012611]
[1645958774646,45.6268,90.37,90.245,4.43]
[1645958774835,45.6268,90.37,90.261,111.6]
[1645958775036,45.6268,90.37,90.27,16.6141]
[1645958775236,45.6268,90.37,90.271,2.54317158]
[1645958775636,43.74233361,90.369,90.271,2.54317158]
[1645958775835,45.62027055,90.369,90.251,2.90423392]
[1645958776034,2.74678921,90.368,90.251,2.90423392]
[1645958776435,16.618,90.36,90.261,111.6]
[1645958776737,16.618,90.36,90.261,2.73605985]
[1645958777139,16.618,90.36,90.26,13.33]
[1645958778562,16.618,90.36,90.27,16.6146]
[1645958778739,16.618,90.36,90.271,3.02569022]
[1645958779439,43.74233361,90.369,90.271,3.02569022]
[1645958779743,1.48774171,90.385,90.251,114.34678921]
[1645958779744,25.10932904,90.396,90.282,2.5369663]
[1645958779940,1.43780456,90.455,90.292,2.60979995]
[1645958779941,4.426,90.454,90.292,2.60979995]
[1645958780140,1.53129976,90.448,90.295,2.36436055]
[1645958780339,1.53129976,90.448,90.31,13.33]
[1645958780540,111.6,90.446,90.31,13.33]
[1645958780740,46.31537799,90.447,90.31,13.33]
[1645958780741,4.425,90.445,90.311,111.6]
[1645958780941,2.74678921,90.445,90.311,114.34678921]
[1645958781139,2.74678921,90.445,90.313,111.6]
[1645958781340,2.74678921,90.444,90.314,2.44820706]
[1645958781545,2.74678921,90.444,90.315,111.6]
[1645958781741,24.8584,90.443,90.316,2.48843622]
[1645958781941,24.8584,90.443,90.33,13.33]
[1645958782143,2.74678921,90.442,90.32,13.33]
[1645958782345,16.6027,90.44,90.34,16.6015]
[1645958782542,16.6027,90.44,90.341,2.7932696]
[1645958782741,2.74678921,90.439,90.341,2.7932696]
[1645958784548,16.6027,90.44,90.35,16.6007]
[1645958784743,16.6027,90.44,90.351,2.54553171]
[1645958785345,24.8584,90.443,90.351,2.54553171]
[1645958786547,16.6025,90.44,90.351,2.54553171]
[1645958786748,16.6025,90.44,90.331,2.64371975]
[1645958787050,114.34678921,90.439,90.331,2.64371975]
[1645958787247,1.41403601,90.438,90.313,2.87352831]
[1645958787449,4.425,90.437,90.313,2.87352831]
[1645958787648,111.6,90.436,90.313,2.87352831]
[1645958787847,16.6068,90.42,90.313,2.87352831]
[1645958788048,111.6,90.417,90.313,2.87352831]
[1645958788350,49.6275,90.416,90.295,114.59497801]
[1645958788548,45.2015,90.416,90.296,2.41446031]
[1645958789151,16.6073,90.41,90.31,16.608]
[1645958789349,16.6073,90.41,90.311,2.39627165]
[1645958791152,45.2015,90.416,90.321,2.38328311]
[1645958791353,45.2015,90.416,90.322,3.08603252]
[1645958791554,45.2015,90.416,90.322,2.74678921]
[1645958791753,45.2015,90.416,90.324,111.6]
[1645958791955,45.2015,90.416,90.325,2.94196298]
[1645958792156,45.2015,90.416,90.326,111.6]
[1645958792357,45.2015,90.416,90.341,111.6]
[1645958792556,40.70231269,90.418,90.342,2.33817202]
[1645958793575,40.70231269,90.418,90.35,16.5998]
[1645958793756,40.70231269,90.418,90.351,2.92032982]
[1645958793953,47.4482,90.449,90.351,114.52032982]
[1645958794154,47.4482,90.449,90.352,5.04284863]
[1645958794353,113.1529996,90.448,90.352,5.04284863]
[1645958794554,113.1529996,90.448,90.328,26.43991608]
[1645958794555,1.38759407,90.447,90.328,2.58226518]
[1645958794755,1.38759407,90.447,90.33,16.6017]
[1645958794957,152.91449022,90.445,90.331,2.87184115]
[1645958795158,1.60346726,90.444,90.331,2.87184115]
[1645958795356,26.26129629,90.444,90.331,2.87184115]
[1645958795557,16.6029,90.44,90.331,2.87184115]
[1645958795757,16.6029,90.44,90.34,16.6023]
[1645958795958,16.6029,90.44,90.341,2.94485475]
[1645958796157,2.74678921,90.439,90.341,2.94485475]
[1645958796558,2.74678921,90.452,90.342,2.74678921]
[1645958796759,2.74678921,90.452,90.343,0.25]
[1645958796958,0.55526065,90.486,90.363,5.0]
[1645958797363,0.55526065,90.486,90.365,111.6]
[1645958797559,0.55526065,90.486,90.366,3.11390659]
[1645958797760,0.55526065,90.486,90.367,111.6]
[1645958797957,0.55526065,90.486,90.368,2.8141794]
[1645958798158,0.55526065,90.486,90.369,111.6]
[1645958798359,0.55526065,90.486,90.37,2.55281364]
[1645958798560,0.55526065,90.486,90.391,111.6]
[1645958798761,0.55526065,90.486,90.392,2.26946769]
[1645958799059,0.55526065,90.486,90.393,111.6]
[1645958799261,211.6,90.485,90.393,2.74678921]
[1645958799460,16.5954,90.48,90.357,24.10732338]
[1645958799660,16.5954,90.48,90.342,24.032]
[1645958799864,26.84900605,90.479,90.343,48.8569]
[1645958800061,1.51272541,90.478,90.344,2.37484344]
[1645958800263,4.424,90.477,90.344,111.6]
[1645958800464,1.4245316,90.475,90.345,2.32539894]
[1645958800763,4.674,90.474,90.351,111.6]
[1645958800961,0.25,90.474,90.351,111.6]
[1645958801182,0.25,90.474,90.352,2.37699369]
[1645958801783,1.47943249,90.507,90.361,114.29319632]
[1645958801982,16.5897,90.51,90.363,5.0]
[1645958802182,16.5897,90.51,90.364,0.25]
[1645958802583,49.4629,90.509,90.364,0.25]
[1645958803182,0.25,90.488,90.364,0.25]
[1645958803381,2.74678921,90.485,90.364,0.25]
[1645958803585,2.74678921,90.485,90.391,111.6]
[1645958803783,2.74678921,90.485,90.392,2.48042644]
[1645958804784,2.74678921,90.485,90.382,3.08706412]
[1645958805585,0.25,90.488,90.412,2.57403962]
[1645958805784,49.4629,90.509,90.412,2.57403962]
[1645958805985,49.4629,90.509,90.39,55.291]
[1645958805986,49.4629,90.509,90.391,2.52585572]
[1645958806187,49.4629,90.509,90.343,29.8587]
[1645958806188,0.2183311,90.485,90.369,2.30779932]
[1645958806388,0.4366622,90.485,90.362,2.5440738]
[1645958806588,0.4366622,90.485,90.38,16.5937]
[1645958806589,0.2183311,90.485,90.38,16.5937]
[1645958806789,0.55526065,90.486,90.381,7.36638031]
[1645958806988,0.55526065,90.486,90.381,4.423]
[1645958807186,0.55526065,90.486,90.383,2.48119436]
[1645958807388,0.55526065,90.486,90.384,4.673]
[1645958807687,0.55526065,90.486,90.385,111.6]
[1645958807889,0.55526065,90.486,90.387,111.6]
[1645958808087,0.55526065,90.486,90.386,7.52847848]
[1645958808088,0.55526065,90.486,90.411,111.6]
[1645958808288,0.55526065,90.486,90.412,2.94480272]
[1645958808488,0.55526065,90.486,90.413,116.022]
[1645958808688,0.55526065,90.486,90.414,2.47765156]
[1645958808888,0.55526065,90.486,90.415,4.422]
[1645958809187,0.55526065,90.486,90.415,116.022]
[1645958809388,0.55526065,90.486,90.432,2.50223191]
[1645958809988,0.55526065,90.486,90.417,6.69616799]
[1645958810189,0.55526065,90.486,90.419,2.45637586]
[1645958810590,0.55526065,90.486,90.421,111.6]
[1645958810789,0.55526065,90.486,90.441,2.33531262]
[1645958811791,0.55526065,90.486,90.44,16.5803]
[1645958812492,0.55526065,90.486,90.42,16.5858]
[1645958812893,0.55526065,90.486,90.422,2.27214461]
[1645958813090,0.55526065,90.486,90.41,55.2809]
[1645958813292,0.55526065,90.486,90.42,2.74678921]
[1645958813490,0.55526065,90.486,90.412,111.6]
[1645958813691,0.55526065,90.486,90.411,2.83316785]
[1645958813990,0.55526065,90.486,90.413,2.74678921]
[1645958814594,0.55526065,90.486,90.43,16.5843]
[1645958814795,0.55526065,90.486,90.4,2.74678921]
[1645958814993,0.55526065,90.486,90.401,4.422]
[1645958815395,0.55526065,90.486,90.4,2.74678921]
[1645958815793,0.55526065,90.486,90.41,16.588]
[1645958817194,0.55526065,90.486,90.388,4.422]
[1645958818497,0.55526065,90.486,90.39,16.5912]
[1645958818697,0.55526065,90.486,90.391,2.33009092]
[1645958819098,0.55526065,90.486,90.388,4.422]
[1645958820202,0.55526065,90.486,90.4,16.5896]
[1645958820402,0.55526065,90.486,90.401,2.561109]
[1645958820604,0.55526065,90.486,90.401,5.30789821]
[1645958820800,0.55526065,90.486,90.402,138.19542245]
[1645958821000,0.55526065,90.486,90.403,2.35692175]
[1645958821201,0.55526065,90.486,90.404,111.85]
[1645958821404,0.55526065,90.486,90.405,2.43646944]
[1645958821601,0.55526065,90.486,90.406,0.25]
[1645958821800,0.55526065,90.486,90.406,139.31176415]
[1645958822001,0.55526065,90.486,90.408,111.6]
[1645958822204,0.55526065,90.486,90.409,2.81121766]
[1645958822501,0.55526065,90.486,90.421,111.6]
[1645958822702,0.55526065,90.486,90.422,2.39422102]
[1645958823106,0.55526065,90.486,90.424,111.6]
[1645958823304,0.55526065,90.486,90.425,3.07815649]
[1645958823505,0.55526065,90.486,90.426,111.6]
[1645958823707,0.55526065,90.486,90.427,3.05187415]
[1645958823904,0.55526065,90.486,90.44,16.5829]
[1645958825010,0.55526065,90.486,90.45,16.5802]
[1645958825211,0.55526065,90.486,90.451,114.27058608]
[1645958825412,47.9728,90.534,90.452,2.37713248]
[1645958825614,47.9728,90.534,90.453,111.6]
[1645958825811,47.9728,90.534,90.454,2.44059556]
[1645958825812,36.72765555,90.533,90.454,2.44059556]
[1645958826212,36.72765555,90.533,90.456,3.03050378]
[1645958826414,36.72765555,90.533,90.462,2.37528042]
[1645958826814,24.6024,90.579,90.462,2.37528042]
[1645958827014,24.6024,90.579,90.464,111.6]
[1645958827213,2.74678921,90.578,90.465,2.40521632]
[1645958827438,2.74678921,90.578,90.466,111.6]
[1645958827639,2.74678921,90.578,90.467,2.89973831]
[1645958827842,37.1077719,90.577,90.481,111.6]
[1645958828042,37.1077719,90.577,90.482,3.01950935]
[1645958828441,37.1077719,90.577,90.482,2.82482814]
[1645958828843,1.42371761,90.576,90.5,16.5699]
[1645958829042,0.25,90.575,90.47,57.74227876]
[1645958829253,0.25,90.575,90.471,2.30034462]
[1645958829543,2.74678921,90.574,90.471,2.30034462]
[1645958829743,2.74678921,90.574,90.458,2.74678921]
[1645958829944,2.74678921,90.574,90.48,16.5746]
[1645958830146,16.5779,90.57,90.452,2.85435049]
[1645958830345,111.6,90.569,90.393,5.0]
[1645958830545,1.40543594,90.568,90.436,47.9542]
[1645958830749,4.418,90.567,90.436,47.9542]
[1645958830951,1.61257944,90.567,90.436,47.9542]
[1645958831246,16.5825,90.55,90.45,16.5808]
[1645958831447,39.27064143,90.548,90.45,16.5808]
[1645958831650,1.57547355,90.547,90.45,16.5808]
[1645958832048,1.57547355,90.547,90.452,111.6]
[1645958832254,1.57547355,90.547,90.46,16.5792]
[1645958832651,37.85784644,90.548,90.452,114.34678921]
[1645958832652,37.85784644,90.548,90.462,2.98929168]
[1645958832849,1.55339303,90.547,90.442,2.74678921]
[1645958833049,1.55339303,90.547,90.443,2.95554971]
[1645958833251,1.55339303,90.547,90.45,16.5798]
[1645958833449,1.55339303,90.547,90.452,2.74678921]
[1645958833650,37.85784644,90.548,90.452,2.74678921]
[1645958834050,1.5236968,90.547,90.452,2.74678921]
[1645958834251,1.5236968,90.547,90.441,2.38256451]
[1645958834652,1.5236968,90.547,90.442,2.74678921]
[1645958834853,113.1236968,90.547,90.442,30.20855336]
[1645958835052,113.1236968,90.547,90.412,39.25082645]
[1645958835053,4.22045383,90.546,90.426,2.74678921]
[1645958835252,4.22045383,90.546,90.42,16.5489]
[1645958835453,2.74678921,90.545,90.413,46.9562]
[1645958835652,7.16678921,90.545,90.413,46.9562]
[1645958835856,16.5834,90.54,90.421,111.6]
[1645958836054,16.5834,90.54,90.414,2.63704915]
[1645958836055,1.86660543,90.539,90.422,2.49110068]
[1645958836254,1.86660543,90.539,90.423,111.6]
[1645958836454,1.86660543,90.539,90.424,2.71521134]
[1645958836654,24.6344,90.538,90.424,2.71521134]
[1645958836855,1.50883127,90.537,90.426,111.6]
[1645958837054,1.50883127,90.537,90.431,111.6]
[1645958837253,1.50883127,90.537,90.432,3.07304596]
[1645958837455,1.50883127,90.537,90.433,111.6]
[1645958837654,1.50883127,90.537,90.434,2.42691748]
[1645958837853,1.50883127,90.537,90.434,5.17370669]
[1645958838053,1.50883127,90.537,90.45,16.5806]
[1645958838456,1.50883127,90.537,90.435,2.74678921]
[1645958839954,1.50883127,90.537,90.441,111.6]
[1645958840156,1.50883127,90.537,90.442,2.47329356]
[1645958840357,24.6344,90.538,90.443,111.6]
[1645958840555,24.6344,90.538,90.444,2.37811888]
[1645958840959,24.6344,90.538,90.445,32.04749155]
[1645958841155,24.6344,90.538,90.446,2.83982048]
[1645958841357,24.6344,90.538,90.447,111.6]
[1645958841559,24.6344,90.538,90.451,111.6]
[1645958841758,24.6344,90.538,90.452,2.78685702]
[1645958841959,37.85784644,90.548,90.452,2.78685702]
[1645958842159,37.85784644,90.548,90.453,143.64749155]
[1645958842359,37.85784644,90.548,90.454,3.08613099]
[1645958842559,1.5529868,90.547,90.47,16.5769]
[1645958842960,62.60924644,90.548,90.47,16.5769]
[1645958843162,62.60924644,90.548,90.471,29.30070234]
[1645958843866,0.25,90.547,90.472,111.6]
[1645958844068,62.60924644,90.548,90.471,29.30070234]
[1645958844268,62.60924644,90.548,90.473,29.30070234]
[1645958844667,62.60924644,90.548,90.474,111.6]
[1645958844868,62.60924644,90.548,90.474,2.74678921]
[1645958845068,62.60924644,90.548,90.475,32.04749155]
[1645958845268,62.60924644,90.548,90.48,16.5751]
[1645958845469,0.25,90.547,90.48,16.5751]
[1645958845670,0.25,90.547,90.48,45.87580234]
[1645958845868,62.60924644,90.548,90.48,48.62259155]
[1645958847685,62.60924644,90.548,90.469,2.74678921]
[1645958847885,1.50958671,90.547,90.46,16.5783]
[1645958848086,1.50958671,90.547,90.456,24.6485]
[1645958848286,2.99678921,90.546,90.445,2.74678921]
[1645958848485,2.99678921,90.546,90.424,14.30279216]
[1645958848486,16.5832,90.54,90.425,2.74678921]
[1645958848687,1.72008712,90.539,90.425,2.74678921]
[1645958848987,2.74678921,90.539,90.425,2.74678921]
[1645958849185,4.42,90.545,90.425,2.74678921]
[1645958849387,2.74678921,90.538,90.425,2.74678921]
[1645958849787,1.38216012,90.536,90.425,2.74678921]
[1645958849987,1.38216012,90.536,90.426,47.45184947]
[1645958850188,1.38216012,90.536,90.426,67.21464163]
[1645958850387,42.31167384,90.519,90.43,16.5841]
[1645958850592,47.4025,90.518,90.43,16.5841]
[1645958850788,47.4025,90.518,90.431,134.10958137]
[1645958850988,47.4025,90.518,90.431,209.58320193]
[1645958851194,47.4025,90.518,90.383,5.0]
[1645958851195,47.4025,90.518,90.433,111.6]
[1645958851389,47.4025,90.518,90.434,2.98722724]
[1645958851597,47.4025,90.518,90.435,111.6]
[1645958851790,47.4025,90.518,90.436,2.32501489]
[1645958852190,47.4025,90.518,90.437,159.05051613]
[1645958852391,0.25,90.517,90.441,111.6]
[1645958852592,0.25,90.517,90.438,67.21330829]
[1645958852797,1.83357909,90.517,90.437,2.74678921]
[1645958852997,0.2183311,90.516,90.421,2.74678921]
[1645958853193,2.74678921,90.516,90.421,2.74678921]
[1645958853994,2.74678921,90.516,90.396,111.6]
[1645958853995,2.74678921,90.516,90.411,2.74678921]
[1645958854494,16.5889,90.51,90.411,2.74678921]
[1645958854695,1.59745107,90.509,90.411,2.74678921]
[1645958855198,1.59745107,90.509,90.417,5.36975867]
[1645958855401,1.59745107,90.509,90.417,33.6230543]
[1645958855597,1.72317006,90.517,90.42,16.5866]
[1645958855797,1.47317006,90.517,90.42,16.5866]
[1645958856001,47.4025,90.518,90.421,5.32213852]
[1645958856404,47.4025,90.518,90.422,2.74678921]
[1645958856603,1.78702886,90.517,90.422,2.74678921]
[1645958857502,47.4025,90.518,90.43,16.5849]
[1645958857706,47.4025,90.518,90.432,3.04414879]
[1645958858303,47.4025,90.518,90.434,111.6]
[1645958858503,47.4025,90.518,90.44,16.5823]
[1645958858903,47.4025,90.518,90.441,111.6]
[1645958859104,47.4025,90.518,90.442,2.4462319]
[1645958859306,47.4025,90.518,90.443,111.6]
[1645958859504,47.4025,90.518,90.444,2.82853906]
[1645958859906,47.4025,90.518,90.444,2.74678921]
[1645958860109,47.4025,90.518,90.439,25.77889071]
[1645958860310,47.4025,90.518,90.429,28.25329563]
[1645958860311,47.4025,90.518,90.426,2.99135785]
[1645958861010,0.25,90.517,90.426,2.99135785]
[1645958861709,0.25,90.517,90.43,16.5841]
[1645958861911,47.4025,90.518,90.43,16.5841]
[1645958862116,47.4025,90.518,90.431,5.52163299]
[1645958862416,47.4025,90.518,90.431,33.77492862]
[1645958862610,47.4025,90.518,90.432,28.25329563]
[1645958862810,47.4025,90.518,90.433,111.6]
[1645958863108,47.4025,90.518,90.434,28.25329563]
[1645958863312,0.25,90.517,90.434,33.43666635]
[1645958863510,0.25,90.517,90.435,3.10662139]
[1645958863909,0.25,90.517,90.435,59.30365016]
[1645958864109,0.25,90.517,90.436,58.65500969]
[1645958864309,0.25,90.517,90.437,113.90839972]
[1645958864512,0.25,90.517,90.437,170.87776245]
[1645958864710,0.25,90.517,90.44,16.5826]
[1645958864913,47.4025,90.518,90.441,111.6]
[1645958865113,47.4025,90.518,90.441,139.85329563]
[1645958865310,47.4025,90.518,90.441,170.54381798]
[1645958865512,47.4025,90.518,90.443,111.6]
[1645958865911,47.4025,90.518,90.444,28.25329563]
[1645958866411,47.4025,90.518,90.445,27.94373314]
[1645958866612,47.4025,90.518,90.441,19.11418921]
[1645958867012,47.4025,90.518,90.442,111.6]
[1645958867810,47.4025,90.518,90.444,111.6]
[1645958869812,47.4025,90.518,90.442,111.6]
[1645958870213,0.25,90.517,90.442,111.6]
[1645958871214,2.74678921,90.553,90.451,111.6]
[1645958871417,22.934,90.552,90.452,2.85542031]
[1645958871615,1.85489314,90.551,90.453,111.6]
[1645958871814,1.85489314,90.551,90.453,158.11621033]
[1645958872014,1.85489314,90.551,90.453,186.05994347]
[1645958872215,40.42216563,90.55,90.455,111.6]
[1645958872714,40.42216563,90.55,90.457,111.6]
[1645958873114,0.25,90.549,90.459,111.6]
[1645958873515,0.25,90.549,90.471,111.6]
[1645958873815,40.42216563,90.55,90.471,111.6]
[1645958874014,40.42216563,90.55,90.473,111.6]
[1645958874418,40.42216563,90.55,90.474,2.74678921]
[1645958875019,1.65827858,90.549,90.474,2.74678921]
[1645958875216,1.65827858,90.549,90.48,16.5754]
[1645958875417,0.25,90.548,90.46,55.2478]
[1645958875617,0.25,90.548,90.459,40.8288147]
[1645958875817,0.25,90.548,90.459,25.31268921]
[1645958876419,0.2183311,90.547,90.449,2.74678921]
[1645958876820,0.25,90.548,90.449,2.74678921]
[1645958877520,0.25,90.548,90.451,111.6]
[1645958877718,1.65827858,90.549,90.46,16.5786]
[1645958877919,1.65827858,90.549,90.461,111.6]
[1645958878119,40.42216563,90.55,90.461,114.34678921]
[1645958878319,40.42216563,90.55,90.462,4.418]
[1645958878520,40.42216563,90.55,90.463,111.6]
[1645958878720,40.42216563,90.55,90.464,4.418]
[1645958878920,40.42216563,90.55,90.463,140.1193623]
[1645958879121,40.42216563,90.55,90.465,140.1193623]
[1645958879521,40.42216563,90.55,90.471,111.6]
[1645958879922,40.42216563,90.55,90.473,111.6]
[1645958880324,40.42216563,90.55,90.475,111.6]
[1645958880521,40.42216563,90.55,90.474,31.26615151]
[1645958880522,40.42216563,90.55,90.481,111.6]
[1645958880922,40.42216563,90.55,90.482,2.74678921]
[1645958881921,40.42216563,90.55,90.482,1.74678921]
[1645958882326,1.85797559,90.589,90.491,111.6]
[1645958882525,24.0208,90.589,90.493,111.6]
[1645958883123,24.0208,90.589,90.496,3.06451861]
[1645958883324,35.22678777,90.588,90.511,111.6]
[1645958883525,35.22678777,90.588,90.511,116.017]
[1645958883825,35.22678777,90.588,90.513,111.6]
[1645958884028,24.6226,90.599,90.514,4.417]
[1645958884226,22.9548,90.619,90.515,111.85]
[1645958884427,22.9548,90.619,90.531,111.6]
[1645958884632,24.7954538,90.646,90.532,7.05638402]
[1645958884826,23.0677,90.646,90.534,3.08665872]
[1645958885028,36.53735221,90.639,90.535,4.666]
[1645958885226,32.74577025,90.624,90.536,111.85]
[1645958885427,37.94926156,90.61,90.538,111.6]
[1645958885632,37.94926156,90.61,90.551,111.6]
[1645958885927,1.80236399,90.645,90.552,4.416]
[1645958886131,26.70476399,90.645,90.552,4.416]
[1645958886329,1.86e-05,90.608,90.553,111.6]
[1645958886527,1.86e-05,90.608,90.554,4.415]
[1645958886727,1.86e-05,90.608,90.554,2.74678921]
[1645958886926,1.86e-05,90.608,90.56,16.559]
[1645958887528,1.86e-05,90.608,90.55,55.1915]
[1645958887529,1.86e-05,90.608,90.541,23.778]
[1645958888128,1.86e-05,90.608,90.542,111.6]
[1645958888428,1.86e-05,90.608,90.519,2.74678921]
[1645958888630,1.86e-05,90.608,90.512,4.416]
[1645958889028,1.86e-05,90.608,90.518,27.1372]
[1645958889227,1.86e-05,90.608,90.519,111.6]
[1645958889629,1.86e-05,90.608,90.52,4.416]
[1645958890032,1.86e-05,90.608,90.54,16.5641]
[1645958890231,1.86e-05,90.608,90.543,5.0]
[1645958890830,1.86e-05,90.608,90.546,3.09788401]
[1645958891032,1.86e-05,90.608,90.573,5.0]
[1645958891230,1.86e-05,90.608,90.582,2.87998252]
[1645958891433,1.86e-05,90.608,90.583,4.665]
[1645958891831,1.86e-05,90.608,90.584,114.59046879]